fUSD/lending_fUSD_20250417
["ID","MTS","AMOUNT","RATE_DAILY","PERIOD"]
[358269298,1744884673410,-150.0,0.00321767,120]
[358269299,1744884673419,-150.0,0.00321831,120]
[358269300,1744884673428,-150.0,0.00321839,120]
[358269301,1744884673436,-150.0,0.00321857,120]
[358269302,1744884673446,-150.0,0.00321873,120]
[358269303,1744884673456,-150.0,0.00321898,120]
[358269304,1744884673467,-150.0,0.00321902,120]
[358269305,1744884673478,-150.0,0.00321904,120]
[358269306,1744884673488,-150.0,0.00321914,120]
[358269307,1744884673498,-150.0,0.00321924,120]
[358269308,1744884673508,-150.0,0.00321936,120]
[358269309,1744884673518,-150.0,0.00321956,120]
[358269310,1744884673528,-150.0,0.00321957,120]
[358269311,1744884673538,-150.0,0.00321984,120]
[358269312,1744884673548,-150.0,0.00322002,120]
[358269313,1744884673557,-150.0,0.00322022,120]
[358269314,1744884673567,-150.0,0.00322025,120]
[358269315,1744884673577,-150.0,0.00322027,120]
[358269316,1744884673587,-150.0,0.00322035,120]
[358269317,1744884673598,-150.0,0.00322047,120]
[358269318,1744884673607,-150.0,0.00322065,120]
[358269319,1744884673617,-150.0,0.0032208,120]
[358269320,1744884673627,-150.0,0.00322082,120]
[358269321,1744884673636,-150.0,0.00322083,120]
[358269322,1744884673646,-150.0,0.00322123,120]
[358269323,1744884673655,-150.0,0.0032213,120]
[358269324,1744884673665,-150.0,0.00322136,120]
[358269325,1744884673675,-150.0,0.00322154,120]
[358269326,1744884673684,-150.0,0.00322173,120]
[358269327,1744884673695,-150.0,0.00322174,120]
[358269328,1744884673704,-150.0,0.00322191,120]
[358269329,1744884673714,-150.0,0.00322214,120]
[358269330,1744884673724,-150.0,0.00322217,120]
[358269331,1744884673734,-150.0,0.00322232,120]
[358269332,1744884673744,-150.0,0.0032225,120]
[358269333,1744884673754,-150.0,0.00322268,120]
[358269334,1744884673763,-150.0,0.00322271,120]
[358269335,1744884673773,-150.0,0.00322273,120]
[358269336,1744884673783,-150.0,0.00322275,120]
[358269337,1744884673793,-150.0,0.00322292,120]
[358269338,1744884673805,-150.0,0.00322292,120]
[358269339,1744884673815,-150.0,0.00322307,120]
[358269340,1744884673825,-150.0,0.00322313,120]
[358269341,1744884673835,-150.0,0.00322332,120]
[358269342,1744884673845,-150.0,0.00322339,120]
[358269343,1744884673855,-150.0,0.00322382,120]
[358269344,1744884673867,-150.0,0.00322396,120]
[358269345,1744884673877,-150.0,0.00322414,120]
[358269346,1744884673887,-150.0,0.00322436,120]
[358269347,1744884673896,-150.0,0.0032246,120]
[358269348,1744884673906,-150.0,0.00322474,120]
[358269349,1744884673988,-150.0,0.00322502,120]
[358269350,1744884674009,-150.0,0.0032252,120]
[358269351,1744884674018,-150.0,0.0032252,120]
[358269352,1744884674028,-150.0,0.00322573,120]
[358269353,1744884674038,-150.0,0.0032258,120]
[358269354,1744884674047,-150.0,0.00322631,120]
[358269355,1744884674055,-150.0,0.00322635,120]
[358269356,1744884674064,-150.0,0.00322643,120]
[358269357,1744884674073,-150.0,0.00322648,120]
[358269358,1744884674082,-150.0,0.00322657,120]
[358269359,1744884674090,-150.0,0.00322675,120]
[358269360,1744884674100,-150.0,0.003227,120]
[358269361,1744884674109,-150.0,0.00322702,120]
[358269362,1744884674117,-1000.0,0.00322702,120]
[358269363,1744884674127,-150.0,0.00322703,120]
[358269364,1744884674136,-150.0,0.00322751,120]
[358269365,1744884674146,-150.0,0.00322758,120]
[358269366,1744884674155,-1000.0,0.00322841,120]
[358269367,1744884674165,-150.0,0.00322858,120]
[358269368,1744884674174,-150.0,0.00322858,120]
[358269369,1744884674184,-1000.0,0.0032286,120]
[358269370,1744884674194,-150.0,0.00322863,120]
[358269371,1744884674203,-150.0,0.00322904,120]
[358269372,1744884674213,-150.0,0.00322906,120]
[358269373,1744884674223,-150.0,0.00322908,120]
[358269374,1744884674233,-729.36998007,0.00322923,120]
[358269375,1744884674243,-150.0,0.00322937,120]
[358269376,1744884674253,-150.0,0.00322938,120]
[358269377,1744884674262,-1000.0,0.00322953,120]
[358269378,1744884674272,-150.0,0.00322968,120]
[358269379,1744884674281,-150.0,0.00322977,120]
[358269380,1744884674291,-150.0,0.00322977,120]
[358269381,1744884674300,-150.0,0.00322982,120]
[358269382,1744884674310,-150.0,0.00322986,120]
[358269383,1744884674320,-150.0,0.00322992,120]
[358269384,1744884674331,-150.0,0.00323004,120]
[358269385,1744884674341,-150.0,0.00323013,120]
[358269386,1744884674352,-150.0,0.00323041,120]
[358269387,1744884674362,-150.0,0.00323058,120]
[358269388,1744884674372,-1000.0,0.00323059,120]
[358269389,1744884674381,-1000.0,0.00323061,120]
[358269390,1744884674391,-150.0,0.00323063,120]
[358269391,1744884674401,-150.0,0.00323075,120]
[358269392,1744884674412,-150.0,0.00323093,120]
[358269393,1744884674422,-150.0,0.00323102,120]
[358269394,1744884674432,-150.0,0.00323102,120]
[358269395,1744884674442,-150.0,0.00323108,120]
[358269396,1744884674451,-150.0,0.00323114,120]
[358269397,1744884674462,-150.0,0.00323116,120]
[358269398,1744884674472,-1000.0,0.00323124,120]
[358269399,1744884674482,-150.0,0.00323132,120]
[358269400,1744884674491,-1000.0,0.00323136,120]
[358269401,1744884674502,-150.0,0.00323144,120]
[358269402,1744884674511,-150.0,0.00323148,120]
[358269403,1744884674521,-150.0,0.00323163,120]
[358269404,1744884674531,-150.0,0.00323194,120]
[358269405,1744884674540,-150.0,0.00323198,120]
[358269406,1744884674550,-250.0,0.003232,120]
[358269407,1744884674559,-250.0,0.003232,120]
[358269408,1744884674569,-250.0,0.003232,120]
[358269409,1744884674579,-371.3,0.003232,120]
[358269410,1744884674588,-150.0,0.00323204,120]
[358269411,1744884674597,-1000.0,0.00323215,120]
[358269412,1744884674606,-150.0,0.00323222,120]
[358269413,1744884674616,-150.0,0.00323233,120]
[358269414,1744884674625,-1000.0,0.00323238,120]
[358269415,1744884674636,-150.0,0.00323247,120]
[358269416,1744884674646,-150.0,0.0032325,120]
[358269417,1744884674656,-150.0,0.00323259,120]
[358269418,1744884674666,-300.0,0.0032327,120]
[358269419,1744884674676,-400.0,0.0032327,120]
[358269420,1744884674687,-150.0,0.00323278,120]
[358269421,1744884674697,-150.0,0.00323282,120]
[358269422,1744884674706,-150.0,0.00323287,120]
[358269423,1744884674716,-2604.5274452,0.00324061,98]
[358269424,1744884674725,-2000.0,0.00345,120]
[358269425,1744884674735,-47631.22999245,0.0035,120]
[358269426,1744884674745,-214.81481481,0.00387,120]
[358269427,1744884674755,-89067.5467119,0.00394181,120]
[358269428,1744884674765,-4066.84,0.00399,120]
[358269429,1744884674775,-214.81481481,0.00399111,120]
[358269430,1744884674785,-15450.492,0.004,120]
[358269431,1744884674795,-100000.0,0.004,120]
[358269432,1744884674805,-5000.0,0.004,120]
[358269433,1744884674815,-100000.0,0.004,120]
[358269434,1744884674825,-100000.0,0.004,120]
[358269435,1744884674835,-1530.0,0.004,30]
[358269436,1744884674844,-3000.0,0.004,120]
[358269437,1744884674854,-1056.98376418,0.00403947,120]
[358269438,1744884674863,-754.0,0.004044,120]
[358269439,1744884674876,-214.81481481,0.00411222,120]
[358269440,1744884674886,-214.81481481,0.00423333,120]
[358269441,1744884674895,-1000.0,0.00428,120]
[358269442,1744884674904,-214.81481481,0.00435444,120]
[358269443,1744884674915,-1423.0,0.004392,120]
[358269444,1744884674925,-2000.0,0.0044,120]
[358269445,1744884674934,-214.81481481,0.00447556,120]
[358269446,1744884674944,-5000.0,0.0045,120]
[358269447,1744884674955,-171.42771428,0.00455096,120]
[358269448,1744884674966,-171.42771428,0.00459123,120]
[358269449,1744884674976,-214.81481481,0.00459667,120]
[358269450,1744884674986,-171.42771428,0.00463123,120]
[358269451,1744884674996,-171.42771428,0.00467151,120]
[358269452,1744884675006,-171.42771428,0.00471178,120]
[358269453,1744884675016,-214.81481481,0.00471778,120]
[358269454,1744884675025,-171.42771428,0.00475205,120]
[358269455,1744884675035,-214.81481481,0.00483889,120]
[358269456,1744884675044,-500.0,0.00489043,120]
[358269457,1744884675053,-500.0,0.00489043,120]
[358269458,1744884675062,-500.0,0.00489043,120]
[358269459,1744884675071,-500.0,0.00489043,120]
[358269460,1744884675080,-500.0,0.00489043,120]
[358269461,1744884675089,-500.0,0.00489043,120]
[358269462,1744884675098,-500.0,0.00489043,120]
[358269463,1744884675107,-500.0,0.00489043,120]
[358269464,1744884675116,-2979.760779,0.00490312,120]
[358269465,1744884675125,-89067.5467119,0.00490648,120]
[358269466,1744884675134,-214.81481481,0.00496,120]
[358269467,1744884675143,-10000.0,0.005,90]
[358269468,1744884675152,-99099.47627967,0.005,120]
[358269469,1744884675161,-5000.0,0.005,120]
[358269470,1744884675170,-50000.0,0.005,120]
[358269471,1744884675179,-3000.0,0.005,120]
[358269472,1744884675188,-214.81481481,0.00508111,120]
[358269473,1744884675197,-214.81481481,0.00520222,120]
[358269474,1744884675206,-214.81481481,0.00532333,120]
[358269475,1744884675215,-214.81481481,0.00544444,120]
[358269476,1744884675224,-1155.11189008,0.00545,120]
[358269477,1744884675234,-1000.0,0.00547945,120]
[358269478,1744884675243,-1000.0,0.00547945,120]
[358269479,1744884675252,-1000.0,0.00547945,120]
[358269480,1744884675262,-1000.0,0.00547945,120]
[358269481,1744884675274,-1000.0,0.00547945,120]
[358269482,1744884675283,-1000.0,0.00547945,120]
[358269483,1744884675293,-1000.0,0.00547945,120]
[358269484,1744884675302,-1000.0,0.00547945,120]
[358269485,1744884675311,-1000.0,0.00547945,120]
[358269486,1744884675320,-1000.0,0.00547945,120]
[358269487,1744884675330,-1000.0,0.00547945,120]
[358269488,1744884675340,-1000.0,0.00547945,120]
[358269489,1744884675349,-655.72,0.00547945,120]
[358269490,1744884675359,-5000.0,0.0055,120]
[358269491,1744884675369,-5268.92972893,0.00552614,10]
[358269492,1744884675378,-214.81481481,0.00556556,120]
[358269493,1744884675387,-214.81481481,0.00568667,120]
[358269494,1744884675397,-214.81481481,0.00580778,120]
[358269495,1744884675407,-3354.9941128,0.00585275,120]
[358269496,1744884675416,-385246.32724866,0.00585676,120]
[358269497,1744884675425,-214.81481481,0.00592889,120]
[358269498,1744884675434,-89067.5467119,0.00597601,120]
[358269499,1744884675443,-3730.2274466,0.00599589,120]
[358269500,1744884675453,-63506.86882731,0.006,120]
[358269501,1744884675461,-10000.0,0.006,90]
[358269502,1744884675470,-5000.0,0.006,120]
[358269503,1744884675479,-350681.18459566,0.006,120]
[358269504,1744884675489,-3000.0,0.006,120]
[358269505,1744884675498,-214.81481481,0.00605,120]
[358269506,1744884675507,-400.0,0.0061,120]
[358269507,1744884675516,-1000.0,0.0061,120]
[358269508,1744884675525,-25000.0,0.006129,30]
[358269509,1744884675534,-214.81481481,0.00617111,120]
[358269510,1744884675630,-1000.0,0.0062,120]
[358269511,1744884675639,-214.81481481,0.00641333,120]
[358269512,1744884675647,-1000.0,0.0065,120]
[358269513,1744884675655,-214.81481481,0.00653444,120]
[358269514,1744884675664,-214.81481481,0.00665556,120]
[358269515,1744884675673,-214.81481481,0.00677667,120]
[358269516,1744884675683,-5000.0,0.0068,120]
[358269517,1744884675693,-1012.56,0.00685,120]
[358269518,1744884675702,-2345.6352685,0.00686278,30]
[358269519,1744884675712,-214.81481481,0.00689778,120]
[358269520,1744884675722,-44533.773356,0.00693327,120]
[358269521,1744884675732,-4105.4607803,0.00699521,120]
[358269522,1744884675742,-60000.0,0.007,120]
[358269523,1744884675751,-1000.0,0.007,2]
[358269524,1744884675761,-1193.0,0.007,120]
[358269525,1744884675770,-8017.0,0.007,120]
[358269526,1744884675780,-1000.0,0.007,120]
[358269527,1744884675789,-100000.0,0.007,120]
[358269528,1744884675799,-334.0,0.007,120]
[358269529,1744884675809,-100000.0,0.007,120]
[358269530,1744884675819,-3000.0,0.007,120]
[358269531,1744884675829,-214.81481481,0.00701889,120]
[358269532,1744884675839,-150.0,0.00710504,120]
[358269533,1744884675848,-150.0,0.00710504,120]
[358269534,1744884675858,-500.0,0.00710991,30]
[358269535,1744884675869,-310.17209016,0.00710991,30]
[358269536,1744884675883,-353.77784226,0.00710991,14]
[358269537,1744884675893,-209.0,0.0071391,120]
[358269538,1744884675903,-214.81481481,0.00714,120]
[358269539,1744884675914,-150.0,0.00718399,120]
[358269540,1744884675923,-214.81481481,0.00726111,120]
[358269541,1744884675933,-150.0,0.00726293,120]
[358269542,1744884675943,-150.0,0.00734188,120]
[358269543,1744884675955,-68898.83642953,0.007364,120]
[358269544,1744884675965,-64897.71022489,0.00737,120]
[358269545,1744884675975,-214.81481481,0.00738222,120]
[358269546,1744884675985,-500.0,0.0074,120]
[358269547,1744884675994,-150.0,0.00742082,120]
[358269548,1744884676004,-3904.39470779,0.007456,120]
[358269549,1744884676014,-1688.0,0.00747,120]
[358269550,1744884676023,-5688.0,0.00747,120]
[358269551,1744884676033,-10000.0,0.007499,120]
[358269552,1744884676042,-300.0,0.0074997,120]
[358269553,1744884676051,-400.0,0.0074997,120]
[358269554,1744884676061,-150.0,0.00749977,120]
[358269555,1744884676070,-150.0,0.00749977,120]
[358269556,1744884676080,-11100.7034821,0.0074999,120]
[358269557,1744884676089,-10051.17183975,0.0075,120]
[358269558,1744884676099,-49000.0,0.0075,120]
[358269559,1744884676109,-150.0,0.0075,120]
[358269560,1744884676118,-150.0,0.0075,120]
[358269561,1744884676128,-150.0,0.0075,120]
[358269562,1744884676138,-1000.0,0.0075,120]
[358269563,1744884676147,-1500.0,0.0075,120]
[358269564,1744884676241,-153.0,0.00750907,120]
[358269565,1744884676251,-150.0,0.00751,120]
[358269566,1744884676260,-150.0,0.00751,120]
[358269567,1744884676269,-150.0,0.00751,120]
[358269568,1744884676279,-153.0,0.00751234,120]
[358269569,1744884676289,-153.0,0.00751234,120]
[358269570,1744884676298,-153.0,0.00751234,120]
[358269571,1744884676306,-153.0,0.00751234,120]
[358269572,1744884676316,-153.0,0.00751297,120]
[358269573,1744884676324,-153.0,0.00751297,120]
[358269574,1744884676334,-153.0,0.00751297,120]
[358269575,1744884676344,-153.0,0.00751297,120]
[358269576,1744884676353,-153.0,0.00751297,120]
[358269577,1744884676363,-153.0,0.00751297,120]
[358269578,1744884676373,-153.0,0.00751297,120]
[358269579,1744884676383,-153.0,0.00751297,120]
[358269580,1744884676392,-153.0,0.00751297,120]
[358269581,1744884676402,-153.0,0.00751297,120]
[358269582,1744884676412,-153.0,0.00751297,120]
[358269583,1744884676421,-153.0,0.00751297,120]
[358269584,1744884676431,-153.0,0.00751297,120]
[358269585,1744884676442,-153.0,0.00751602,120]
[358269586,1744884676451,-153.0,0.00751602,120]
[358269587,1744884676460,-153.0,0.00751602,120]
[358269588,1744884676470,-153.0,0.00751602,120]
[358269589,1744884676480,-209.0,0.0075168,120]
[358269590,1744884676490,-153.0,0.00751688,120]
[358269591,1744884676499,-153.0,0.00751688,120]
[358269592,1744884676509,-153.0,0.00751688,120]
[358269593,1744884676520,-153.0,0.00751688,120]
[358269594,1744884676530,-153.0,0.00751688,120]
[358269595,1744884676540,-153.0,0.00751688,120]
[358269596,1744884676552,-153.0,0.00751688,120]
[358269597,1744884676561,-153.0,0.00751688,120]
[358269598,1744884676571,-153.0,0.00751688,120]
[358269599,1744884676581,-153.0,0.00751688,120]
[358269600,1744884676589,-153.0,0.00751688,120]
[358269601,1744884676598,-153.0,0.00751688,120]
[358269602,1744884676607,-153.0,0.00751688,120]
[358269603,1744884676616,-150.0,0.00752,120]
[358269604,1744884676625,-150.0,0.00752,120]
[358269605,1744884676635,-150.0,0.00752,120]
[358269606,1744884676645,-153.0,0.00752028,120]
[358269607,1744884676654,-153.0,0.00752028,120]
[358269608,1744884676663,-153.0,0.00752028,120]
[358269609,1744884676673,-153.0,0.00752028,120]
[358269610,1744884676683,-153.0,0.00752085,120]
[358269611,1744884676692,-153.0,0.00752085,120]
[358269612,1744884676701,-153.0,0.00752085,120]
[358269613,1744884676711,-153.0,0.00752085,120]
[358269614,1744884676720,-153.0,0.00752085,120]
[358269615,1744884676730,-153.0,0.00752085,120]
[358269616,1744884676739,-153.0,0.00752085,120]
[358269617,1744884676749,-153.0,0.00752085,120]
[358269618,1744884676759,-153.0,0.00752085,120]
[358269619,1744884676768,-153.0,0.00752085,120]
[358269620,1744884676778,-153.0,0.00752085,120]
[358269621,1744884676788,-153.0,0.00752085,120]
[358269622,1744884676798,-153.0,0.00752085,120]
[358269623,1744884676808,-153.0,0.00752416,120]
[358269624,1744884676818,-153.0,0.00752416,120]
[358269625,1744884676828,-153.0,0.00752416,120]
[358269626,1744884676837,-153.0,0.00752416,120]
[358269627,1744884676847,-153.0,0.00752477,120]
[358269628,1744884676855,-153.0,0.00752477,120]
[358269629,1744884676865,-153.0,0.00752477,120]
[358269630,1744884676876,-153.0,0.00752477,120]
[358269631,1744884676886,-153.0,0.00752477,120]
[358269632,1744884676895,-153.0,0.00752477,120]
[358269633,1744884676905,-153.0,0.00752477,120]
[358269634,1744884676915,-153.0,0.00752477,120]
[358269635,1744884676925,-153.0,0.00752477,120]
[358269636,1744884676934,-153.0,0.00752477,120]
[358269637,1744884676943,-153.0,0.00752477,120]
[358269638,1744884676953,-153.0,0.00752477,120]
[358269639,1744884676962,-153.0,0.00752477,120]
[358269640,1744884676972,-153.0,0.00752806,120]
[358269641,1744884676981,-153.0,0.00752806,120]
[358269642,1744884676991,-153.0,0.00752806,120]
[358269643,1744884677000,-153.0,0.00752806,120]
[358269644,1744884677009,-153.0,0.0075287,120]
[358269645,1744884677019,-153.0,0.0075287,120]
[358269646,1744884677029,-153.0,0.0075287,120]
[358269647,1744884677039,-153.0,0.0075287,120]
[358269648,1744884677049,-153.0,0.0075287,120]
[358269649,1744884677059,-153.0,0.0075287,120]
[358269650,1744884677068,-153.0,0.0075287,120]
[358269651,1744884677162,-153.0,0.0075287,120]
[358269652,1744884677172,-153.0,0.0075287,120]
[358269653,1744884677182,-150.0,0.00753,120]
[358269654,1744884677191,-150.0,0.00753,120]
[358269655,1744884677201,-150.0,0.00753,120]
[358269656,1744884677211,-153.0,0.00753203,120]
[358269657,1744884677221,-150.0,0.00754,120]
[358269658,1744884677231,-150.0,0.00754,120]
[358269659,1744884677240,-150.0,0.00754,120]
[358269660,1744884677249,-247.0,0.00755,120]
[358269661,1744884677259,-247.0,0.00755,120]
[358269662,1744884677269,-247.0,0.00755,120]
[358269663,1744884677279,-5688.0,0.00757,120]
[358269664,1744884677289,-1056.98376418,0.00757482,120]
[358269665,1744884677299,-150.0,0.00757871,120]
[358269666,1744884677309,-300.0,0.0075997,120]
[358269667,1744884677318,-400.0,0.0075997,120]
[358269668,1744884677328,-157.0,0.0076,120]
[358269669,1744884677338,-214.81481481,0.00762444,120]
[358269670,1744884677347,-150.0,0.00765766,120]
[358269671,1744884677357,-550.06,0.00767,120]
[358269672,1744884677367,-33767.85680956,0.0076869,120]
[358269673,1744884677376,-33767.85680956,0.00768714,120]
[358269674,1744884677386,-150.0,0.0077366,120]
[358269675,1744884677397,-165.91590214,0.0078,120]
[358269676,1744884677407,-4480.6941141,0.00780695,120]
[358269677,1744884677416,-40333.897976,0.0078123,7]
[358269678,1744884677425,-254016.576652,0.0078123,7]
[358269679,1744884677435,-150.0,0.00781555,120]
[358269680,1744884677444,-2000.0,0.00785502,120]
[358269681,1744884677454,-2000.0,0.00785502,120]
[358269682,1744884677464,-214.81481481,0.00786667,120]
[358269683,1744884677474,-300.0,0.0078937,120]
[358269684,1744884677484,-400.0,0.0078937,120]
[358269685,1744884677494,-150.0,0.007894,120]
[358269686,1744884677503,-150.0,0.007894,120]
[358269687,1744884677512,-209.0,0.0078944,120]
[358269688,1744884677522,-253.00909216,0.00789449,120]
[358269689,1744884677531,-150.0,0.00789449,120]
[358269690,1744884677542,-322265.92557087,0.0078999,120]
[358269692,1744885028020,-118397.43675475,0.0005051,30]
[358269693,1744885055051,-397.80101665,0.000356,7]
[358269694,1744885055087,-150.0,0.00036989,2]
[358269695,1744885055122,-250.0,0.000383,2]
[358269696,1744885055154,-250.0,0.0003916,2]
[358269697,1744885055187,-173.0,0.00041,14]
[358269698,1744885055220,-550.0,0.00050125,10]
[358269699,1744885055251,-1000.0,0.00050126,2]
[358269700,1744885055283,-2001.07006835,0.00050511,2]
[358269702,1744885306824,375.0,0.00051433,120]
[358269703,1744885339959,250.0,0.00017,2]
[358269704,1744885341077,107.31146314,0.00019,2]
[358269705,1744885370606,-200.0,0.00036989,7]
[358269706,1744885370645,-800000.0,0.0005,7]
[358269707,1744885375234,150.0,0.000497,7]
[358269708,1744885376204,150.0,0.000497,7]
[358269709,1744885376384,150.0,0.000497,7]
[358269710,1744885376617,200.0,0.000497,7]
[358269711,1744885380107,150.0,0.000497,7]
[358269712,1744885380309,150.0,0.000497,7]
[358269713,1744885380477,200.0,0.000497,7]
[358269714,1744885382579,150.0,0.000497,7]
[358269715,1744885382639,150.0,0.000497,7]
[358269716,1744885382812,200.0,0.000497,7]
[358269717,1744885384834,500.0,0.000497,7]
[358269718,1744885385013,500.0,0.000497,7]
[358269719,1744885385224,386.0,0.000497,7]
[358269720,1744885386425,336.3514,0.000497,7]
[358269723,1744885593677,-253.98059422,0.00017999,2]
[358269724,1744885622750,-163.63364825,0.00017999,2]
[358269725,1744885644106,-136.36635175,0.00017999,2]
[358269726,1744885644129,-550.0,0.00017999,2]
[358269727,1744885644157,-1460.02306427,0.00018,2]
[358269728,1744885647086,-1366.54572165,0.00018,2]
[358269729,1744885679423,46938.07757128,0.0002,4]
[358269730,1744885695433,-623000.0,0.00018,2]
[358269732,1744885722174,6540.17974143,0.000151,2]
[358269738,1744885744812,-6321.7244,0.00018,2]
[358269739,1744885749123,-152826.1091127,0.00018,2]
[358269740,1744885760255,-37000.0,0.00018,2]
[358269741,1744885801629,300.0,0.00017999,2]
[358269742,1744885802798,2000.0,0.0002,4]
[358269743,1744885804456,160.35,0.0001799,2]
[358269744,1744885804505,127.65,0.00017999,2]
[358269755,1744885831580,-259.510234,0.0001799,2]
[358269756,1744885831591,-172.35,0.00017999,2]
[358269757,1744885831602,-1054520.91225119,0.00018,2]
[358269758,1744885831837,-27720.26624269,0.00018,2]
[358269759,1744885831849,-6773.73147567,0.00018,2]
[358269768,1744885837649,-6596.03655,0.00018,2]
[358269769,1744885837663,-1620.26420972,0.00018,2]
[358269770,1744885837810,-3257.09167311,0.00018,2]
[358269771,1744885837865,-890.54535279,0.00018,2]
[358269772,1744885837978,-399.0394385,0.00018,2]
[358269773,1744885837991,-1477.0668564,0.00018,2]
[358269774,1744885838029,-357.25905687,0.00018,2]
[358269784,1744885839782,-4999.94938,0.00018,2]
[358269785,1744885839797,-541662.95941116,0.00018,2]
[358269786,1744885839808,-928.5093955,0.00018499,2]
[358269787,1744885839821,-180.68658262,0.00018599,2]
[358269788,1744885839832,-164.63165521,0.00018699,2]
[358269789,1744885839843,-4082.25723404,0.00018699,2]
[358269790,1744885839854,-160.88883066,0.00018799,2]
[358269791,1744885839865,-192.68853686,0.00019,2]
[358269792,1744885839876,-40575.7814135,0.00019,2]
[358269793,1744885839886,-1000.0,0.00019211,2]
[358269794,1744885839896,-194.0,0.00019639,2]
[358269795,1744885839906,-557.1592989,0.00019973,2]
[358269796,1744885839916,-280.17335578,0.00019973,2]
[358269797,1744885839925,-246712.52692876,0.0002,2]
[358269798,1744885839942,-565.29624324,0.0002,2]
[358269799,1744885839955,-373.79986975,0.0002,2]
[358269800,1744885839966,-571.88588942,0.0002,2]
[358269801,1744885839978,-2000.0,0.0002,2]
[358269802,1744885840344,-87210.50957016,0.0002,2]
[358269803,1744885840356,-785.12380266,0.0002,2]
[358269804,1744885840368,-266.42769885,0.0002,2]
[358269805,1744885840380,-860.133955,0.0002,2]
[358269823,1744885841954,-0.00607763,0.0002,2]
[358269838,1744885843849,-960.24400021,0.0002,2]
[358269840,1744885843862,-431.899998,0.0002,2]
[358269842,1744885843873,-524109.01993292,0.0002,2]
[358269844,1744885843883,-279.85645652,0.0002,2]
[358269845,1744885843893,-186.19666413,0.00020053,2]
[358269847,1744885843904,-350.0,0.00021,2]
[358269849,1744885843914,-8133.01773282,0.00022,15]
[358269851,1744885843924,-400.0,0.00023,2]
[358269853,1744885843934,-5990.32,0.00023,2]
[358269855,1744885843944,-5000.00910914,0.00024,5]
[358269856,1744885843954,-500.0,0.00024773,2]
[358269858,1744885843964,-500.0,0.00024773,2]
[358269859,1744885843973,-240710.356229,0.000248,2]
[358269860,1744885843983,-253092.881003,0.000249,2]
[358269861,1744885843993,-500.0,0.00027397,2]
[358269862,1744885844003,-500.0,0.00027397,2]
[358269863,1744885844012,-500.0,0.00027397,2]
[358269864,1744885844022,-300.0,0.00027397,2]
[358269865,1744885844031,-213.0,0.0003,2]
[358269866,1744885844041,-500.0,0.00030252,5]
[358269867,1744885844050,-500.0,0.00030252,5]
[358269868,1744885844060,-2299.99999703,0.0004,2]
[358269869,1744885844069,-200.0,0.0004321,2]
[358269870,1744885844078,-1238.09,0.00044389,5]
[358269871,1744885844087,-1013.82485559,0.00045,2]
[358269872,1744885844097,-600.894,0.00045,30]
[358269873,1744885844107,-600.894,0.00045,30]
[358269874,1744885844116,-600.894,0.00045,30]